Cogmind - Beta 13 @@@ ROGUE MODE // 2024.04.02 @ 11:43:51 Player: Lum4r Result: Destroyed by S-27 Virus with Autogun Performance ------------- Evolutions (3) 1500 Regions Visited (5) 1000 Robots Destroyed (47) 235 Value Destroyed (1307) 1307 Prototype IDs (2) 40 Alien Tech Used (0) 0 Bonus (779) 779 TOTAL SCORE: 4861 Bonus ------- High Alert Combat Kills 79 Entered Garrisons 200 Used RIF Installer 500 Cogmind --------- Core Integrity 0/700 Matter 7/300 Energy 23/100 System Corruption 0% Temperature Cool (0) Movement Core (50) Location -7/Garrison Parts ------- > --- POWER (2) -------- (None) > --- PROPULSION (2) --- (None) > --- UTILITY (5) ------ (None) > --- WEAPON (4) ------- (None) > --- INVENTORY (5) ---- Improved Signal Interpreter Microactuators Peak State ------------ > --- POWER ------------ Light Ion Engine > --- PROPULSION ------- Improved Flight Unit > --- UTILITY ---------- Weight Redist. System Shield Generator Shield Generator > --- WEAPON ----------- Grenade Launcher Mini Grenade Launcher > --- INVENTORY -------- Improved Signal Interpreter Shield Generator Light Assault Rifle Rocket Launcher Rocket Launcher [Rating: 14] Favorites ----------- Power Light Ion Engine Engine Light Ion Engine Power Core Light Nuclear Core Propulsion Improved Flight Unit Flight Unit Improved Flight Unit Utility Signal Interpreter Device Sensor Array Processor Signal Interpreter Weapon Light Assault Rifle Energy Gun Small Laser Ballistic Gun Light Assault Rifle Launcher Grenade Launcher Special Melee Weapon Datajack Build | -11 -10 -9 -8 -7 -7 ------- Run | Yrd Mat Mat Mat Fac Gar Slots Evolved 6 | . . 2 2 2 . Power 1 | . . . . 1 . Propulsion . | . . . . . . Utility 3 | . . 1 2 . . Weapon 2 | . . 1 . 1 . Parts Attached 29 | 3 7 12 4 . 3 Power 4 | 1 1 2 . . . Engine 3 | 1 1 1 . . . Core 1 | . . 1 . . . Reactor . | . . . . . . Propulsion 1 | . . 1 . . . Treads . | . . . . . . Leg . | . . . . . . Wheel . | . . . . . . Hover . | . . . . . . Flight 1 | . . 1 . . . Utility 8 | . 3 3 2 . . Device 7 | . 2 3 2 . . Storage . | . . . . . . Processor 1 | . 1 . . . . Hackware . | . . . . . . Protection . | . . . . . . Artifact . | . . . . . . Weapon 16 | 2 3 6 2 . 3 Energy Gun 3 | 1 1 . . . 1 Energy Cannon . | . . . . . . Ballistic Gun 4 | 1 . 2 . . 1 Ballistic Cannon . | . . . . . . Launcher 8 | . 2 3 2 . 1 Special Weapon . | . . . . . . Impact Weapon . | . . . . . . Slashing Weapon . | . . . . . . Piercing Weapon . | . . . . . . Special Melee Weapon 1 | . . 1 . . . Unidentified Prototypes . | . . . . . . Parts Lost 21 | . 3 5 6 . 7 Power 3 | . 1 1 1 . . Propulsion 1 | . . . . . 1 Utility 7 | . 1 1 2 . 3 Weapon 10 | . 1 3 3 . 3 Highest Loss Streak 7 | . 2 5 3 . 7 To Critical Strikes . | . . . . . . Average Slot Usage (%) 57 | . 63 61 47 38 28 Engine 9 | . 13 7 2 . . Flight 3 | . . 4 9 7 5 Device 13 | . 9 13 24 23 17 Processor 7 | . 11 7 . . . Energy Gun 5 | . 11 . . . . Ballistic Gun 8 | . 12 8 . . . Launcher 7 | . 3 14 11 7 5 Naked Turns 9 | . . . . . 9 Heaviest Build 13 | 6 12 13 11 7 7 Greatest Support 11 | 3 3 11 11 11 11 Greatest Overweight (x) 4 | 1 3 4 . . 1 Average Overweight (x) . | . 1 1 . . . Largest Inventory Capacity 5 | 5 5 5 5 5 5 Average Capacity 5 | 5 5 5 5 5 5 Most Carried 5 | . 5 5 5 3 4 Average Carried 2 | . 1 4 4 2 3 Final Capacity 5 | 5 5 5 5 5 5 Final Carried 5 | . 5 4 2 3 2 Class Distribution -------------------- 95% | Mutant 4% | Tank Dominant Class ---------------- Mutant | -10/Materials Mutant | -9/Materials Mutant | -8/Materials Mutant | -7/Factory Mutant | -7/Garrison Resources | -11 -10 -9 -8 -7 -7 ----------- Run | Yrd Mat Mat Mat Fac Gar Matter Collected 737 | 230 143 196 168 . . Remotely 25 | . . . 25 . . Salvage Created 1081 | . 501 352 201 . 27 Parts 74 | . 26 32 14 . 2 Haulers Intercepted . | . . . . . . Recyclers Shooed 1 | . 1 . . . . Parts Field Recycled . | . . . . . . Retrieved Matter . | . . . . . . Parts Self-Destructed . | . . . . . . Prevented . | . . . . . . Kills | -11 -10 -9 -8 -7 -7 ------- Run | Yrd Mat Mat Mat Fac Gar Combat Hostiles Destroyed 27 | . 10 7 9 . 1 Guns 10 | . 7 2 . . 1 AOE 17 | . 3 5 9 . . Classes Destroyed 11 | . 5 4 2 . . Worker 7 | . 2 5 . . . Builder 2 | . . 2 . . . Recycler 2 | . 1 1 . . . Mechanic 1 | . . 1 . . . Operator 1 | . 1 . . . . Watcher 7 | . 3 3 1 . . Swarmer 4 | . . . 3 . 1 Grunt 18 | . 10 4 4 . . Duelist 1 | . . 1 . . . Sentry 2 | . . 2 . . . Specialist 2 | . . . 2 . . Best Kill Streak 9 | . 4 9 6 . 1 Combat Bots Only 5 | . 2 3 5 . 1 Max Kills in Single Turn 4 | . 2 4 3 . 1 Gunslinging . | . . . . . . Exploded 3 | . 1 2 3 . . Melee . | . . . . . . Uniques/NPCs Destroyed . | . . . . . . Combat | -11 -10 -9 -8 -7 -7 -------- Run | Yrd Mat Mat Mat Fac Gar Hostile Shots Fired 225 | . 57 37 25 . 106 Missed 81 | . 21 14 8 . 38 Damage Taken 2183 | . 430 369 393 . 991 Core 1093 | . 126 148 106 . 713 Absorbed by Shields 166 | . . 92 58 . 16 Core Remaining (%) 73 | 100 49 63 80 . . Volleys Fired 105 | . 55 34 14 . 2 Largest 3 | . 2 3 2 . 1 Hottest 80 | . 70 80 63 . 75 Shots Fired 185 | . 100 63 20 . 2 Gun 130 | . 92 36 . . 2 Cannon . | . . . . . . Launcher 55 | . 8 27 20 . . Special . | . . . . . . Kinetic 88 | . 51 36 . . 1 Thermal 42 | . 41 . . . 1 Explosive 55 | . 8 27 20 . . Electromagnetic . | . . . . . . Robot Hit Streak 14 | . 7 14 9 . 1 Robot Miss Streak 5 | . 5 4 2 . 2 Penetration Max . | . . . . . . Secondary Targets . | . . . . . . Shots Hit Robots 103 | . 60 33 9 . 1 Core Hits 93 | . 31 35 26 . 1 Critical Kills . | . . . . . . Critical Parts Destroyed . | . . . . . . Critical Strikes . | . . . . . . Melee Attacks 1 | . . 1 . . . Impact . | . . . . . . Slashing . | . . . . . . Piercing . | . . . . . . Sneak Attacks 1 | . . 1 . . . Combat Hostiles . | . . . . . . Follow-up Attacks . | . . . . . . Damage Inflicted 3535 | . 868 1389 1251 . 27 Guns 782 | . 545 210 . . 27 Cannons . | . . . . . . Explosions 2753 | . 323 1179 1251 . . Melee . | . . . . . . Ramming . | . . . . . . Kinetic 481 | . 265 210 . . 6 Thermal 301 | . 280 . . . 21 Explosive 2753 | . 323 1179 1251 . . Electromagnetic . | . . . . . . Impact . | . . . . . . Slashing . | . . . . . . Piercing . | . . . . . . Highest Corruption . | . . . . . . Average Corruption . | . . . . . . Corruption Purged . | . . . . . . Corruption Blocked . | . . . . . . Overload Shots . | . . . . . . Overflow Damage 53 | . 8 1 44 . . Projectiles . | . . . . . . Explosions 53 | . 8 1 44 . . Melee . | . . . . . . Knockbacks . | . . . . . . Impact . | . . . . . . Kinetic . | . . . . . . Secondary . | . . . . . . Self-Inflicted Damage 344 | . 28 159 157 . . Shots 16 | . 2 6 8 . . Rammed . | . . . . . . Targets Rammed . | . . . . . . Kicked . | . . . . . . Crushed . | . . . . . . Highest Temperature 158 | . 158 30 45 . 6 Average Temperature 31 | . 41 8 16 . 4 Received Heat Transfer 471 | . 222 90 150 . 9 Siege Activations . | . . . . . . Robots Corrupted . | . . . . . . Combat Hostiles . | . . . . . . Parts Fried . | . . . . . . Impact Corruptions . | . . . . . . Robots Melted . | . . . . . . Combat Hostiles . | . . . . . . Parts Melted 2 | . 2 . . . . Heat Transferred 758 | . 708 . . . 50 Parts Sabotaged . | . . . . . . Parts Stolen . | . . . . . . Parts Stripped . | . . . . . . Power Chain Reactions . | . . . . . . Alert | -11 -10 -9 -8 -7 -7 ------- Run | Yrd Mat Mat Mat Fac Gar Peak Influence 601 | . 267 564 601 287 235 Initial 273 | . . 112 153 273 200 Average 198 | . 83 305 453 275 199 Maximum Alert Level 2 | . 1 2 2 1 1 Low Security (%) 61 | 100 95 36 8 . 18 Level 1 25 | . 4 48 16 100 81 Level 2 13 | . . 15 74 . . Level 3 . | . . . . . . Level 4 . | . . . . . . Level 5 . | . . . . . . High Security . | . . . . . . Max Security . | . . . . . . Squads Dispatched 6 | . 4 1 1 . . Investigation 1 | . 1 . . . . Extermination . | . . . . . . Reinforcement 5 | . 3 1 1 . . Assault . | . . . . . . Garrison . | . . . . . . Intercept . | . . . . . . Searches Triggered . | . . . . . . Construction Impeded . | . . . . . . Haulers Reinforced . | . . . . . . Active Scanning Responses . | . . . . . . Cargo Convoy Interrupts . | . . . . . . Stealth | -11 -10 -9 -8 -7 -7 --------- Run | Yrd Mat Mat Mat Fac Gar Distress Signals 2 | . 2 . . . . Communications Jammed . | . . . . . . Distress Signals . | . . . . . . Times Spotted 50 | . 16 10 9 . 15 Peak Tracking Total 14 | . 2 3 4 . 14 Tactical Retreats 1 | . . . . . 1 Traps | -11 -10 -9 -8 -7 -7 ------- Run | Yrd Mat Mat Mat Fac Gar Traps Triggered 1 | . 1 . . . . Indirectly . | . . . . . . Trap Hack Attempts . | . . . . . . Triggered . | . . . . . . Disarmed 1 | . 1 . . . . Reprogrammed . | . . . . . . Reused . | . . . . . . Traps Extracted . | . . . . . . Installed . | . . . . . . Triggered . | . . . . . . Machines | -11 -10 -9 -8 -7 -7 ---------- Run | Yrd Mat Mat Mat Fac Gar Machines Disabled 12 | . 1 3 8 . . Max in Single Turn 3 | . 1 2 3 . . Machines Repaired . | . . . . . . Machines Dismantled . | . . . . . . Machines Sabotaged . | . . . . . . Overloaded Fab Kills . | . . . . . . Hacking | -11 -10 -9 -8 -7 -7 --------- Run | Yrd Mat Mat Mat Fac Gar Machines Accessed 6 | . 2 1 . 1 2 Terminals 5 | . 2 1 . . 2 Fabricators . | . . . . . . Repair Stations . | . . . . . . Recycling Units . | . . . . . . Scanalyzers . | . . . . . . Garrison Access 1 | . . . . 1 . Total Hacks 9 | . 3 1 . 2 3 Successful 4 | . 2 1 . 1 . Failed 5 | . 1 . . 1 3 Catastrophic 2 | . 1 . . . 1 Database Lockouts . | . . . . . . Manual . | . . . . . . Terminals 7 | . 3 1 . . 3 Fabricators . | . . . . . . Repair Stations . | . . . . . . Recycling Units . | . . . . . . Scanalyzers . | . . . . . . Garrison Access 2 | . . . . 2 . Terminal Hacks 3 | . 2 1 . . . Record 1 | . 1 . . . . Prototype ID Bank 1 | . . 1 . . . Disarm Traps 1 | . 1 . . . . Fabricator Hacks . | . . . . . . Repair Station Hacks . | . . . . . . Recycling Unit Hacks . | . . . . . . Scanalyzer . | . . . . . . Garrison Access Hacks 1 | . . . . 1 . Unlock Access 1 | . . . . 1 . Unauthorized Hacks . | . . . . . . Terminals . | . . . . . . Fabricators . | . . . . . . Repair Stations . | . . . . . . Recycling Units . | . . . . . . Scanalyzers . | . . . . . . Garrison Access . | . . . . . . Data Cores Recovered . | . . . . . . Used . | . . . . . . Hacking Detections 4 | . 1 . . 1 2 Full Trace Events . | . . . . . . Feedback Events . | . . . . . . Feedback Blocked . | . . . . . . Robot Schematics Acquired . | . . . . . . Robots Built . | . . . . . . Authchips . | . . . . . . Time . | . . . . . . Total Robot Build Rating . | . . . . . . Part Schematics Acquired . | . . . . . . Parts Built . | . . . . . . Authchips . | . . . . . . Time . | . . . . . . Total Part Build Rating . | . . . . . . Parts Repaired . | . . . . . . Time . | . . . . . . Parts Recycled . | . . . . . . Recycled Matter . | . . . . . . Retrieved Matter . | . . . . . . Retrieved Components . | . . . . . . Parts Scanalyzed . | . . . . . . Part Schematics Acquired . | . . . . . . Parts Damaged . | . . . . . . Bothacking | -11 -10 -9 -8 -7 -7 ------------ Run | Yrd Mat Mat Mat Fac Gar Used RIF Installer 1 | . . . . . 1 Robots Hacked 1 | . . 1 . . . Non-combat 1 | . . 1 . . . Combat . | . . . . . . Robot Hacks Applied 1 | . . 1 . . . parse_system 1 | . . 1 . . . Relay Couplers Released . | . . . . . . Fabnet Peak Effective % . | . . . . . . Robots Rewired . | . . . . . . Allies Hacked . | . . . . . . Hacks Repelled . | . . . . . . Allies | -11 -10 -9 -8 -7 -7 -------- Run | Yrd Mat Mat Mat Fac Gar Total Allies . | . . . . . . Largest Group . | . . . . . . Highest-Rated Group . | . . . . . . Highest-Rated Ally . | . . . . . . Total Orders . | . . . . . . Ally Attacks . | . . . . . . Total Damage . | . . . . . . Kills . | . . . . . . Allies Corrupted . | . . . . . . Allies Melted . | . . . . . . Intel | -11 -10 -9 -8 -7 -7 ------- Run | Yrd Mat Mat Mat Fac Gar Robot Analysis Total . | . . . . . . Derelict Logs Recovered . | . . . . . . Drone Launches . | . . . . . . Drone Recoveries . | . . . . . . Exploration | -11 -10 -9 -8 -7 -7 ------------- Run | Yrd Mat Mat Mat Fac Gar Turns Passed 1619 | 28 798 430 195 22 146 Spaces Moved 1129 | 30 389 213 296 52 149 Core 573 | 30 389 85 28 . 41 Treads . | . . . . . . Legs . | . . . . . . Wheels . | . . . . . . Hover . | . . . . . . Flight 556 | . . 128 268 52 108 Fastest Speed 40 | 50 100 40 40 40 40 Average Speed 96 | 80 141 143 40 40 44 Slowest Speed 250 | 100 200 250 50 40 110 Overloaded Moves . | . . . . . . Propulsion Burnouts . | . . . . . . Robots Hopped 7 | . . . 3 . 4 Cave-ins Triggered . | . . . . . . Exploration Rate (%) 29 | 4 59 38 42 1 32 Regions Visited 5 Branch Regions . Pre-discovered Areas . | . . . . . . Known Exits Taken 2 | . 1 . . 1 . Unknown Exits Taken 3 | 1 . 1 1 . . Scrap Searched . | . . . . . . Spaces Dug . | . . . . . . Terrain Destroyed 307 | . 36 155 116 . . Melee . | . . . . . . Projectile . | . . . . . . AOE 307 | . 36 155 116 . . Terrain Rammed . | . . . . . . Walls Destroyed . | . . . . . . Machines Disabled . | . . . . . . Actions | -11 -10 -9 -8 -7 -7 --------- Run | Yrd Mat Mat Mat Fac Gar Total 1486 | 32 547 287 345 52 223 Wait 210 | . 91 14 34 . 71 Move 1111 | 29 388 212 289 51 142 Hop 6 | . . . 3 . 3 Pick Up 13 | . 4 7 1 1 . Fast Attach 15 | 3 6 3 1 . 2 Attach 14 | . 1 9 3 . 1 Detach 7 | . 2 4 . . 1 Swap . | . . . . . . Drop 4 | . . 3 . . 1 Fire 105 | . 55 34 14 . 2 Melee 1 | . . 1 . . . Ram . | . . . . . . Kick . | . . . . . . Crush . | . . . . . . Escape Stasis . | . . . . . . Rewire . | . . . . . . Trap . | . . . . . . Miscellaneous . | . . . . . . Route ------- -11/Scrapyard -10/Materials (discovered 2 exits: *Mat x2) -9/Materials (discovered 2 exits: *Mat / *Min) -8/Materials (discovered 2 exits: *Fac / [*Sto]) -7/Factory -7/Garrison History --------- Turn | Location | Event 6 | -11/Scrapyard | Discovered new exit (range 15) 29 | -11/Scrapyard | Entered Materials 306 | -10/Materials | Build established: Mutant 538 | -10/Materials | Discovered new exit (range 16) 759 | -10/Materials | Discovered new exit (range 15) 792 | -10/Materials | Core integrity fell below 50% 803 | -10/Materials | Identified exit to Materials 827 | -10/Materials | Entered another Materials area 827 | -9/Materials | Evolved 2 slots: Utility x1, Weapon x1 1068 | -9/Materials | Lost 5 parts (1p1u3w) 1083 | -9/Materials | Discovered new exit (range 12) 1115 | -9/Materials | Identified exit to Mines 1224 | -9/Materials | Discovered new exit (range 16) 1257 | -9/Materials | Entered another Materials area 1257 | -8/Materials | Evolved 2 slots: Utility x2 1269 | -8/Materials | Discovered new exit (range 16) 1341 | -8/Materials | Lost 3 parts (1p1u1w) 1447 | -8/Materials | Discovered new exit (range 11) 1452 | -8/Materials | Entered Factory 1452 | -7/Factory | Evolved 2 slots: Power x1, Weapon x1 1465 | -7/Factory | Lost 3 parts (1u2w) 1470 | -7/Factory | Identified exit to Garrison 1474 | -7/Factory | Entered Garrison 1493 | -7/Garrison | Installed Relay Interface Framework 1608 | -7/Garrison | Core integrity fell below 50% 1617 | -7/Garrison | Core integrity fell below 20% 1620 | -7/Garrison | Destroyed by S-27 Virus with Autogun Last Messages --------------- GOAL=ESCAPE Connecting with Garrison Terminal... Initiating installation procedure... Relay Interface Framework installed. Connecting with Garrison Terminal... Weight Redist. System destroyed. Garrison Door activated. S-27 Virus suffers critical hit (Destroy). Imp. Flight Unit destroyed. Shield Generator destroyed. Dropped Rocket Launcher. Acquired Rocket Launcher. Rocket Launcher destroyed. Garrison Door activated. S-27 Virus destroyed. Lrn. Tractor Beam destroyed. Acquired Plasma Rifle. S-27 Virus destroyed. Plasma Rifle destroyed. Lgt. Assault Rifle destroyed. Map ----- +----------------------------------------------------+ | ??????????????????????????????????????????????? | | ??????????????????????????????????????????????? | | ??????????????????????????????????????????????? | | ??????????????????????????????????????????????? | | ??????????????????????????????????????????????? | | ??????????????????????????????????????????????? | | ??????????????????????????????????????????????? | | #####?????????????????????????????????????????? | | ?????????????????????????????????????????? | | ?????????????????????????????????????????? | | ?????????????????????????????????????????? | | # #?????????????????????????????????????????? | | # #?????????????????????????????????????????? | | "?????????????????????????????????????????? | | "?????????????????????????????????????????? | | "?????????????????????????????????????????? | | "?????????????????????????????????????????? | | # #?????????????????????????????????????????? | | # ############??????????????????????????????? | | #??????????????????????????????? | | #?????######???????????????????? | | #?????#[s[[#???????????????????? | | ############ #?????#[ s[#???????????????????? | | ???????????+ #?????+[ss[#???????????????????? | | ???????????# #?????#ss [#???????????????????? | | ???????????# #?????# [ @#???????????????????? | | ???????????# #?????##ss##???????????????????? | | ???????????# #??????#* #????????????????????? | | ???????????# ######## ### "?????????? | | ???????????# =%[ !"????????? | | ???????????# = !"????????? | | ???????????# #### ###### !"????????? | | ???????????# #??# ??????? !"????????? | | ???????????# #??####???????? "?????????? | | ???????????# #???????????????!!!!""?????????? | | ???????????# #????????????????""""??????????? | | ???????????# #?????????????????###??????????? | | ???????????# #??????????????????????????????? | | ???????????# #??????????????????????????????? | | ???????????# #??????????????????????????????? | | ???????????# ???????????????????????????????? | | ???????????# ???????????????????????????????? | | ???????????# ???????????????????????????????? | | ???????????# #???????????????????????????????? | | ??????????????????????????????????????????????? | | ??????????????????????????????????????????????? | | ??????????????????????????????????????????????? | | ??????????????????????????????????????????????? | | ??????????????????????????????????????????????? | | ??????????????????????????????????????????????? | +----------------------------------------------------+ Best States ------------- Heat Dissipation 34 Energy Generation 14 Energy Capacity 250 Matter Stores 300 Matter Capacity 300 Sight Range 16 Robot Scan Range 14 Terrain Scan Density 10 Additional Mass Support 6 Evasion (%) 62 Item Schematics ----------------- None Robot Schematics ------------------ None Fabricated ------------ Nothing Alien Tech Used ----------------- None Achievements -------------- None Challenges ------------ None Game ------ Seed ContainmentCompactKit Manual? 0 Play Time 00:27:48 Cumulative 6.1 hours Start 2024.04.01 @ 23:28:15 End 2024.04.02 @ 11:43:51 Sessions 2 Manual Loads 0 Difficulty Rogue Special Mode None Game No. 9 Rogue 9 Adventurer 0 Explorer 0 Win Type - Total 0 Types 0/0/0/0/0/0/0/0/0 Lore% 10 Gallery% 13 Achievement% 11 Wizard Run 0 Options --------- Layout 1 ASCII 0 Keyboard 1 Movement Numpad Keybinds 0 Fullscreen 1 Font 24/Terminus Map View 50x35 Zoom Use 0% Tactical HUD 0 Map Filters NONE Filters NONE Steam 1 RUN: 32c882c1-4217-4b23-a010-ff5878644acf